bitfinex-derivatives/quotes_BTCF0:USTF0_20251125
["timestamp","ask_amount","ask_price","bid_price","bid_amount"]
[1764075475379,0.52858,87570.0,87569.0,0.05744]
[1764075476279,0.5,87570.0,87569.0,0.05744]
[1764075476776,0.540004,87570.0,87569.0,0.05744]
[1764075479784,0.950004,87570.0,87569.0,0.05744]
[1764075479981,0.950004,87570.0,87569.0,0.08815481]
[1764075480181,0.950004,87570.0,87569.0,0.03071481]
[1764075480483,0.950004,87570.0,87565.0,0.01827]
[1764075480484,0.0513245,87566.0,87565.0,0.03071481]
[1764075480985,0.0513245,87566.0,87565.0,0.09041481]
[1764075481574,0.5513245,87566.0,87565.0,0.09041481]
[1764075481985,0.5513245,87566.0,87565.0,0.0597]
[1764075482680,0.5513245,87566.0,87565.0,0.09041697]
[1764075483475,0.5513245,87566.0,87565.0,0.06197697]
[1764075483691,0.5513245,87566.0,87565.0,0.09041697]
[1764075483981,0.5399,87566.0,87565.0,0.0597]
[1764075486878,0.5513245,87566.0,87565.0,0.0597]
[1764075487984,0.5399,87566.0,87565.0,0.0597]
[1764075489580,0.5513245,87566.0,87565.0,0.0597]
[1764075489781,0.5399,87566.0,87565.0,0.0597]
[1764075491187,0.5,87566.0,87565.0,0.0597]
[1764075492379,0.5114245,87566.0,87565.0,0.0597]
[1764075492580,0.5,87566.0,87565.0,0.0597]
[1764075493785,0.5,87566.0,87565.0,0.0711247]
[1764075493990,0.5114245,87566.0,87565.0,0.0597]
[1764075495196,0.5270845,87566.0,87565.0,0.0597]
[1764075496696,0.53132,87566.0,87565.0,0.0597]
[1764075496886,0.51566,87566.0,87565.0,0.0711247]
[1764075497691,0.5,87566.0,87565.0,0.0711247]
[1764075498300,0.0427442,87569.0,87568.0,0.06062]
[1764075499301,0.5427442,87569.0,87568.0,0.06062]
[1764075501104,0.53132,87569.0,87568.0,0.06062]
[1764075501896,0.5,87569.0,87568.0,0.0720443]
[1764075502491,0.53132,87569.0,87568.0,0.06062]
[1764075502801,0.51566,87569.0,87568.0,0.0720443]
[1764075502997,0.5,87569.0,87568.0,0.0720443]
[1764075503703,0.0158313,87577.0,87576.0,0.0720432]
[1764075504199,0.0001713,87577.0,87576.0,0.0720432]
[1764075505095,0.0314913,87577.0,87576.0,0.06062]
[1764075505601,0.0314913,87577.0,87576.0,0.0720432]
[1764075505795,0.0314913,87577.0,87576.0,0.06062]
[1764075506191,0.0001713,87577.0,87576.0,0.06062]
[1764075506901,0.03132,87584.0,87583.0,0.06062]
[1764075507093,0.03132,87584.0,87583.0,0.0720423]
[1764075507495,0.01566,87584.0,87583.0,0.0720423]
[1764075507695,0.01566,87584.0,87583.0,0.06062]
[1764075508001,0.03132,87584.0,87583.0,0.06062]
[1764075508405,0.53132,87584.0,87583.0,0.06062]
[1764075516507,0.5,87584.0,87583.0,0.06062]
[1764075517007,0.5,87584.0,87583.0,0.14281949]
[1764075517398,0.0314913,87592.0,87591.0,0.06062]
[1764075518807,0.0324913,87592.0,87591.0,0.06062]
[1764075519309,0.5324913,87592.0,87591.0,0.06062]
[1764075520199,0.5314913,87592.0,87591.0,0.06062]
[1764075521902,0.5314913,87592.0,87590.0,0.01856]
[1764075521903,0.0114213,87591.0,87590.0,0.06146696]
[1764075522100,0.0256818,87587.0,87586.0,0.02892]
[1764075522502,0.0256818,87587.0,87586.0,0.05797]
[1764075524009,0.0266818,87587.0,87586.0,0.05797]
[1764075524211,0.0266818,87587.0,87586.0,0.11943696]
[1764075525602,0.01526,87587.0,87586.0,0.11943696]
[1764075526409,0.0256818,87587.0,87586.0,0.11943696]
[1764075527213,0.0256818,87587.0,87586.0,0.05797]
[1764075529610,0.01426,87577.0,87576.0,0.23805]
[1764075530597,0.01426,87577.0,87576.0,0.05797]
[1764075530799,0.01426,87577.0,87576.0,0.02892]
[1764075531611,0.51426,87577.0,87576.0,0.05797]
[1764075532911,0.51526,87577.0,87576.0,0.05797]
[1764075534014,0.51626,87577.0,87576.0,0.05797]
[1764075534717,0.51626,87577.0,87576.0,0.0693932]
[1764075535805,0.51626,87577.0,87576.0,0.05797]
[1764075536005,0.51626,87577.0,87576.0,0.0693932]
[1764075536219,0.51626,87577.0,87576.0,0.05797]
[1764075536220,0.5276831,87577.0,87576.0,0.05797]
[1764075537518,0.5266831,87577.0,87576.0,0.05797]
[1764075539310,0.5256831,87577.0,87576.0,0.05797]
[1764075539508,0.5266831,87577.0,87576.0,0.05797]
[1764075541519,0.5256831,87577.0,87576.0,0.05797]
[1764075541816,0.5266831,87577.0,87576.0,0.05797]
[1764075542717,0.5256831,87577.0,87576.0,0.05797]
[1764075543310,0.5266831,87577.0,87576.0,0.05797]
[1764075545111,0.0058,87576.0,87575.0,0.0001713]
[1764075545317,0.4158,87576.0,87575.0,0.0001713]
[1764075546220,0.9158,87576.0,87575.0,0.0001713]
[1764075546620,0.9168,87576.0,87575.0,0.0001713]
[1764075550525,0.9168,87576.0,87575.0,0.0244613]
[1764075550720,0.9168,87576.0,87575.0,0.0001713]
[1764075552513,0.9168,87576.0,87575.0,0.0244613]
[1764075552719,0.9168,87576.0,87575.0,0.0490113]
[1764075552922,0.5068,87576.0,87575.0,0.0631413]
[1764075554328,0.5068,87576.0,87575.0,0.0001713]
[1764075554519,0.9068,87576.0,87575.0,0.0001713]
[1764075556929,0.0114237,87572.0,87570.0,0.0410476]
[1764075557127,0.4114237,87572.0,87563.0,0.11040734]
[1764075557321,0.0114248,87564.0,87563.0,0.11040734]
[1764075557924,0.0154248,87564.0,87563.0,0.11040734]
[1764075558128,0.0154248,87564.0,87563.0,0.04884]
[1764075559532,0.5154248,87564.0,87563.0,0.04884]
[1764075560643,0.5134248,87564.0,87563.0,0.04884]
[1764075560844,0.5114248,87564.0,87563.0,0.04884]
[1764075561145,0.5134248,87564.0,87563.0,0.04884]
[1764075561744,0.5154248,87564.0,87563.0,0.04884]
[1764075575052,0.5114248,87564.0,87563.0,0.04884]
[1764075575953,0.5,87564.0,87563.0,0.04884]
[1764075576958,0.504,87564.0,87563.0,0.04884]
[1764075579060,0.502,87564.0,87563.0,0.04884]
[1764075579260,0.5,87564.0,87563.0,0.04884]
[1764075579464,0.5114248,87564.0,87563.0,0.04884]
[1764075579757,0.5134248,87564.0,87563.0,0.04884]
[1764075579956,0.5114248,87564.0,87563.0,0.0602649]
[1764075580861,0.5,87564.0,87563.0,0.0602649]
[1764075581162,0.502,87564.0,87563.0,0.04884]
[1764075581460,0.502,87564.0,87563.0,0.0602649]
[1764075581956,0.5,87564.0,87563.0,0.0602649]
[1764075583761,0.5,87564.0,87563.0,0.04884]
[1764075589065,0.5,87564.0,87563.0,0.13103949]
[1764075589871,0.0114241,87570.0,87569.0,0.04786]
[1764075591060,0.5114241,87570.0,87569.0,0.04786]
[1764075593069,0.5114241,87570.0,87569.0,0.10953246]
[1764075595770,0.5114241,87570.0,87569.0,0.04786]
[1764075600372,0.5114241,87570.0,87568.0,0.07567326]
[1764075600670,0.5114241,87570.0,87568.0,0.06168326]
[1764075600865,0.0114243,87568.0,87567.0,0.06168326]
[1764075601180,0.512424,87570.0,87569.0,0.0441]
[1764075601571,0.501,87570.0,87569.0,0.0441]
[1764075602075,0.5,87570.0,87569.0,0.0441]
[1764075603675,0.0114241,87569.0,87568.0,0.01267]
[1764075604675,0.0114241,87569.0,87568.0,0.03535]
[1764075604874,0.5114241,87569.0,87568.0,0.03535]
[1764075605070,0.5124241,87569.0,87568.0,0.05677]
[1764075606767,0.0114247,87565.0,87564.0,0.17565]
[1764075607575,0.0314257,87557.0,87556.0,0.0441]
[1764075607779,0.0314257,87557.0,87556.0,0.02268]
[1764075607970,0.0314257,87557.0,87556.0,0.0441]
[1764075609371,0.0429,87556.0,87555.0,0.0228513]
[1764075609568,0.0429,87556.0,87555.0,0.0001713]
[1764075609777,0.0114273,87545.0,87544.0,0.08219949]
[1764075609975,0.0543281,87539.0,87538.0,0.10487949]
[1764075610275,0.0543281,87539.0,87538.0,0.0441]
[1764075610576,0.0543291,87531.0,87530.0,0.0441]
[1764075610767,0.0543298,87526.0,87525.0,0.23696449]
[1764075610979,0.0429,87526.0,87525.0,0.23696449]
[1764075612673,0.0429,87526.0,87525.0,0.24839439]
[1764075613179,0.0429,87526.0,87525.0,0.23696449]
[1764075614383,0.0429,87526.0,87525.0,0.29842849]
[1764075615085,0.0429,87526.0,87525.0,0.23696449]
[1764075616672,0.0001713,87539.0,87538.0,0.04305]
[1764075616673,0.0443813,87539.0,87538.0,0.04305]
[1764075617484,0.5443813,87539.0,87538.0,0.07375497]
[1764075617985,0.5443813,87539.0,87538.0,0.04305]
[1764075618189,0.5443813,87539.0,87538.0,0.07375325]
[1764075618880,0.5443813,87539.0,87538.0,0.08399682]
[1764075618881,0.5001713,87539.0,87538.0,0.08399682]
[1764075619086,0.5228613,87539.0,87538.0,0.04305]
[1764075619489,0.5443813,87539.0,87538.0,0.04305]
[1764075621080,0.5001713,87539.0,87538.0,0.04305]
[1764075622004,0.0556386,87535.0,87534.0,0.1044516]
[1764075622289,0.0556392,87530.0,87529.0,0.02202]
[1764075622598,0.0556396,87527.0,87526.0,0.0614016]
[1764075622896,0.04421,87526.0,87525.0,0.06307828]
[1764075623084,0.04421,87526.0,87525.0,0.08410828]
[1764075624390,0.54421,87526.0,87525.0,0.08410828]
[1764075625091,0.54421,87526.0,87525.0,0.04316449]
[1764075626593,0.54421,87526.0,87525.0,0.02213449]
[1764075627486,0.54421,87526.0,87525.0,0.04316449]
[1764075629788,0.54421,87526.0,87525.0,0.00011449]
[1764075631004,0.54421,87526.0,87525.0,0.04316449]
[1764075631786,0.54421,87526.0,87525.0,0.00011449]
[1764075631787,0.60421,87526.0,87525.0,0.00011449]
[1764075631991,0.91421,87526.0,87525.0,0.00011449]
[1764075632891,0.91421,87526.0,87508.0,0.11676]
[1764075632892,0.0556404,87521.0,87519.0,0.03071727]
[1764075633085,0.0556404,87521.0,87514.0,0.04094379]
[1764075633086,0.0556412,87515.0,87514.0,0.03071727]
[1764075633291,0.04421,87514.0,87513.0,0.07376727]
[1764075633494,0.04421,87514.0,87513.0,0.04305]
[1764075633991,0.04432822,87514.0,87513.0,0.04305]
[1764075634192,0.02280822,87514.0,87513.0,0.04305]
[1764075634394,0.02280822,87514.0,87513.0,0.08399379]
[1764075634592,0.52280822,87514.0,87513.0,0.08399379]
[1764075634890,0.54432822,87514.0,87513.0,0.08399379]
[1764075636294,0.54432822,87514.0,87513.0,0.04305]
[1764075638696,0.55575952,87514.0,87513.0,0.04305]
[1764075640197,0.54432822,87514.0,87513.0,0.04305]
[1764075641098,0.55575952,87514.0,87513.0,0.1044516]
[1764075641597,0.55575952,87514.0,87513.0,0.04305]
[1764075641798,0.54432822,87514.0,87513.0,0.04305]
[1764075643296,0.50011822,87514.0,87513.0,0.04305]
[1764075643600,0.04281822,87514.0,87513.0,0.04305]
[1764075647002,0.00011822,87514.0,87513.0,0.04305]
[1764075647396,0.02141822,87514.0,87513.0,0.04305]
[1764075647700,0.04281822,87514.0,87513.0,0.04305]
[1764075649295,0.04281822,87514.0,87513.0,0.22321]
[1764075650795,0.02141822,87514.0,87513.0,0.22321]
[1764075650997,0.00011822,87514.0,87513.0,0.22321]
[1764075651197,0.00011822,87514.0,87513.0,0.30540949]
[1764075651397,0.00011822,87514.0,87513.0,0.22321]
[1764075652006,0.00011822,87514.0,87513.0,0.30539936]
[1764075652397,0.00011822,87514.0,87513.0,0.22321]
[1764075657410,3.72e-06,87514.0,87513.0,0.22321]
[1764075661206,3.72e-06,87514.0,87513.0,0.18016]
[1764075662612,3.72e-06,87514.0,87513.0,0.1915914]
[1764075664815,3.72e-06,87514.0,87513.0,0.27383878]
[1764075665005,3.72e-06,87514.0,87513.0,0.1915914]
[1764075666109,3.72e-06,87514.0,87513.0,0.27383878]
[1764075666908,3.72e-06,87514.0,87513.0,0.1915914]
[1764075667108,3.72e-06,87514.0,87513.0,0.27383647]
[1764075667619,3.72e-06,87514.0,87513.0,0.1915914]
[1764075669718,3.72e-06,87514.0,87513.0,0.08225464]
[1764075669915,0.0571914,87513.0,87510.0,0.09540464]
[1764075670116,0.0571914,87513.0,87512.0,0.04554]
[1764075670317,0.04576,87513.0,87512.0,0.04554]
[1764075670819,3.72e-06,87514.0,87512.0,0.0114316]
[1764075671917,3.72e-06,87514.0,87513.0,0.08225464]
[1764075672125,3.72e-06,87514.0,87513.0,0.18012]
[1764075674120,3.72e-06,87514.0,87513.0,0.26237464]
[1764075674319,3.72e-06,87514.0,87513.0,0.18012]
[1764075680221,3.72e-06,87514.0,87512.0,0.0114315]
[1764075680422,3.72e-06,87514.0,87513.0,0.18012]
[1764075681024,0.02249,87512.0,87511.0,0.10273037]
[1764075681216,0.04364,87512.0,87511.0,0.32863037]
[1764075681423,0.04364,87512.0,87511.0,0.2259]
[1764075682532,0.04364,87512.0,87511.0,0.04578]
[1764075682825,0.04364,87512.0,87511.0,0.2259]
[1764075683031,0.0550724,87506.0,87505.0,0.12808749]
[1764075683225,0.04364,87506.0,87505.0,0.23869]
[1764075683732,0.02115,87508.0,87507.0,0.04578]
[1764075683930,0.04364,87508.0,87507.0,0.04578]
[1764075686030,0.04364,87508.0,87507.0,0.2259]
[1764075686930,0.04364,87508.0,87507.0,0.04578]
[1764075687124,0.04364,87508.0,87507.0,0.2259]
[1764075688532,0.04364,87508.0,87507.0,0.0231]
[1764075688736,0.04364,87497.0,87496.0,0.0231]
[1764075688921,0.04364,87493.0,87492.0,0.04578]
[1764075689120,0.04364,87493.0,87490.0,0.09509749]
[1764075689121,0.04364,87493.0,87483.0,0.08230749]
[1764075689331,0.055075,87486.0,87485.0,0.05857]
[1764075689931,0.055075,87486.0,87485.0,0.23873]
[1764075690528,0.055075,87486.0,87485.0,0.20326]
[1764075690732,0.04364,87484.0,87483.0,0.06159663]
[1764075690932,0.04364,87482.0,87481.0,0.10737663]
[1764075691143,0.04364,87482.0,87481.0,0.04578]
[1764075692839,0.0550756,87481.0,87480.0,0.18016]
[1764075693033,0.0550756,87481.0,87480.0,0.22594]
[1764075693432,0.0550756,87481.0,87480.0,0.20326]
[1764075693633,0.5050756,87481.0,87480.0,0.18016]
[1764075693833,0.1350756,87481.0,87480.0,0.18016]
[1764075694135,0.1350756,87481.0,87480.0,0.22594]
[1764075694334,0.9650756,87481.0,87480.0,0.22594]
[1764075694529,0.6150756,87481.0,87480.0,0.22594]
[1764075695433,0.60364,87481.0,87480.0,0.23873]
[1764075695730,0.5,87481.0,87480.0,0.30023286]
[1764075695938,0.5,87481.0,87480.0,0.23873]
[1764075696938,0.0550731,87501.0,87500.0,0.04578]
[1764075697133,0.0550731,87501.0,87498.0,0.03071523]
[1764075697324,0.0550731,87501.0,87480.0,0.28952763]
[1764075697325,0.04364,87496.0,87495.0,0.03071523]
[1764075697523,0.39364,87496.0,87495.0,0.03071523]
[1764075697727,0.0550742,87492.0,87491.0,0.06405364]
[1764075697928,0.0550742,87492.0,87491.0,0.0231]
[1764075698239,0.0550747,87488.0,87487.0,0.08673364]
[1764075698437,0.0550747,87488.0,87487.0,0.04578]
[1764075698934,0.055075,87486.0,87484.0,0.04095364]
[1764075699138,0.055075,87486.0,87479.0,0.0231]
[1764075699139,0.0550758,87480.0,87479.0,0.0231]
[1764075699327,0.0550758,87480.0,87479.0,0.04578]
[1764075699531,0.5,87496.0,87477.0,0.11964]
[1764075699532,0.09657763,87490.0,87480.0,0.01279]
[1764075699733,0.0114354,87483.0,87482.0,0.03071361]
[1764075699933,0.0114354,87483.0,87481.0,0.03071361]
[1764075700130,0.0114354,87483.0,87481.0,0.05381361]
[1764075700332,0.0114354,87483.0,87481.0,0.0231]
[1764075701238,0.5,87482.0,87481.0,0.0231]
[1764075701444,0.5,87482.0,87481.0,0.04578]
[1764075702338,0.5,87482.0,87481.0,0.04575]
[1764075703142,0.501,87482.0,87481.0,0.04575]
[1764075706056,0.5,87482.0,87481.0,0.04575]
[1764075707453,0.5,87482.0,87481.0,0.08670364]
[1764075707647,0.5,87482.0,87481.0,0.04575]
[1764075707858,0.465,87482.0,87481.0,0.04575]
[1764075708944,0.0114344,87491.0,87490.0,0.04497]
[1764075709444,0.0247144,87491.0,87490.0,0.04497]
[1764075709844,0.0134514,87494.0,87493.0,0.04497]
[1764075710145,0.0134514,87494.0,87493.0,0.08591971]
[1764075710348,0.0134514,87494.0,87493.0,0.04497]
[1764075710847,0.0267314,87494.0,87493.0,0.08594699]
[1764075711051,0.0267314,87494.0,87493.0,0.04497]
[1764075711354,0.5267314,87494.0,87493.0,0.04497]
[1764075712546,0.5267314,87494.0,87486.0,0.01339]
[1764075712547,0.02656,87488.0,87487.0,0.04497]
[1764075712748,0.02656,87488.0,87487.0,0.10640047]
[1764075713147,0.02656,87488.0,87487.0,0.04497]
[1764075715347,0.0379947,87488.0,87487.0,0.10654359]
[1764075716048,0.0379947,87488.0,87487.0,0.04497]
[1764075717650,0.0379956,87481.0,87480.0,0.05516]
[1764075718351,0.0114353,87484.0,87483.0,0.04237]
[1764075718756,0.0381653,87494.0,87493.0,0.04237]
[1764075719954,0.0381653,87494.0,87490.0,0.04110034]
[1764075719955,0.0379942,87492.0,87490.0,0.04110034]
[1764075720150,0.02656,87491.0,87490.0,0.04110034]
[1764075721360,0.02656,87491.0,87490.0,0.06215034]
[1764075721560,0.02656,87491.0,87490.0,0.08347034]
[1764075721761,0.02656,87491.0,87490.0,0.04237]
[1764075723659,0.52656,87491.0,87490.0,0.04237]
[1764075726360,0.5,87491.0,87490.0,0.04237]
[1764075726560,0.5,87491.0,87490.0,0.08347423]
[1764075726760,0.5114343,87491.0,87490.0,0.04237]
[1764075727354,0.51328,87491.0,87490.0,0.04237]
[1764075727557,0.52656,87491.0,87490.0,0.04237]
[1764075730660,0.5,87491.0,87490.0,0.04237]
[1764075731563,0.0001714,87494.0,87493.0,0.04379]
[1764075732264,0.0001714,87494.0,87493.0,0.0552241]
[1764075732559,0.0001714,87494.0,87493.0,0.04379]
[1764075732765,0.0221514,87494.0,87493.0,0.04379]
[1764075733265,0.0453014,87494.0,87493.0,0.04379]
[1764075734165,0.0453014,87494.0,87493.0,0.19055]
[1764075736767,0.0001714,87494.0,87493.0,0.19055]
[1764075737469,0.0001714,87494.0,87493.0,0.27285749]
[1764075739871,0.0001714,87494.0,87493.0,0.19055]
[1764075740274,0.0001714,87494.0,87493.0,0.27273033]
[1764075742272,0.05656,87525.0,87520.0,0.01385]
[1764075742467,0.0114297,87527.0,87524.0,0.04379]
[1764075742770,0.01366,87550.0,87525.0,0.105392]
[1764075742771,0.01220717,87526.0,87525.0,0.105392]
[1764075742977,0.04513,87550.0,87549.0,0.04379]
[1764075743272,0.0221514,87558.0,87557.0,0.04379]
[1764075743467,0.0221514,87558.0,87557.0,0.08477879]
[1764075743663,0.0221514,87558.0,87557.0,0.04379]
[1764075744369,0.0001714,87558.0,87557.0,0.04379]
[1764075744763,0.0221514,87558.0,87557.0,0.04379]
[1764075744969,0.0453014,87558.0,87557.0,0.04379]
[1764075748971,0.0453014,87558.0,87548.0,0.04379]
[1764075748972,0.05912,87549.0,87548.0,0.04379]
[1764075749167,0.05912,87549.0,87548.0,0.20975]
[1764075749366,0.04513,87549.0,87548.0,0.20975]
[1764075750075,0.04613,87549.0,87548.0,0.20975]
[1764075750682,0.04513,87549.0,87548.0,0.20975]
[1764075750867,0.0453014,87558.0,87557.0,0.04379]
[1764075751273,0.0001714,87558.0,87557.0,0.04379]
[1764075751477,0.49053262,87558.0,87557.0,0.04379]
[1764075751678,0.45553262,87558.0,87557.0,0.04379]
[1764075751878,0.42053262,87558.0,87557.0,0.04379]
[1764075752984,0.0001713,87566.0,87565.0,0.0304447]
[1764075755480,0.0011713,87566.0,87565.0,0.0304447]
[1764075756176,0.0463013,87566.0,87565.0,0.00951]
[1764075756382,0.0125959,87566.0,87565.0,0.06156]
[1764075756581,0.0463013,87566.0,87565.0,0.08058]
[1764075757083,0.0231513,87566.0,87565.0,0.08058]
[1764075757284,0.0011713,87566.0,87565.0,0.08058]
[1764075758876,0.0231513,87566.0,87565.0,0.08058]
[1764075761780,0.0463013,87566.0,87565.0,0.01902]
[1764075762283,0.0463013,87566.0,87565.0,0.08046]
[1764075762483,0.0463013,87566.0,87565.0,0.19918]
[1764075762683,1.3e-06,87566.0,87565.0,0.19918]
[1764075763277,1.3e-06,87566.0,87565.0,0.01902]
[1764075763478,1.3e-06,87566.0,87565.0,0.14646]
[1764075764079,1.3e-06,87566.0,87565.0,0.19918]
[1764075764879,1.3e-06,87566.0,87565.0,0.20018]
[1764075765082,0.0440313,87574.0,87573.0,0.01978]
[1764075766183,0.0440313,87574.0,87573.0,0.19005]
[1764075766486,0.0440313,87574.0,87573.0,0.19994]
[1764075767388,0.0440313,87574.0,87573.0,0.19005]
[1764075767992,0.0440313,87574.0,87573.0,0.19994]
[1764075768294,0.0440313,87574.0,87573.0,0.23045943]
[1764075768793,0.0440313,87574.0,87573.0,0.19994]
[1764075769286,0.0440313,87574.0,87573.0,0.23045943]
[1764075770484,0.0440313,87574.0,87573.0,0.19994]
[1764075770990,0.0440313,87574.0,87573.0,0.01978]
[1764075771182,0.0440313,87574.0,87573.0,0.13014]
[1764075772293,0.0440313,87574.0,87573.0,0.19162319]
[1764075773190,0.0440313,87574.0,87573.0,0.1999]
[1764075774396,0.0440313,87574.0,87573.0,0.19986]
[1764075774693,0.0440313,87574.0,87573.0,0.01978]
[1764075774892,0.0440313,87574.0,87573.0,0.19986]
[1764075777196,0.04467,87574.0,87573.0,0.19986]
[1764075777492,0.04306,87566.0,87565.0,0.0223113]
[1764075777689,0.04306,87566.0,87565.0,0.2023913]
[1764075778983,0.04306,87566.0,87565.0,0.1802513]
[1764075779190,0.04306,87566.0,87565.0,0.2235413]
[1764075780196,0.04306,87566.0,87565.0,0.0001713]
[1764075780392,0.04306,87566.0,87565.0,0.1694513]
[1764075781107,0.04406,87566.0,87565.0,0.1694513]
[1764075781400,0.04406,87566.0,87565.0,0.2023913]
[1764075781596,0.04406,87566.0,87565.0,0.1802513]
[1764075781790,0.04406,87566.0,87565.0,0.0001713]
[1764075781791,0.04506,87566.0,87565.0,0.0001713]
[1764075782095,0.04506,87566.0,87565.0,0.0223113]
[1764075782290,0.04506,87566.0,87565.0,0.0953913]
[1764075782490,0.04506,87566.0,87565.0,0.1802513]
[1764075783098,0.54506,87566.0,87565.0,0.1802513]
[1764075783297,0.54506,87566.0,87565.0,0.0001713]
[1764075783694,0.02112,87560.0,87559.0,0.04100895]
[1764075783899,0.0544854,87559.0,87558.0,0.175]
[1764075784807,0.0544845,87566.0,87565.0,0.04329]
[1764075784996,0.0544845,87566.0,87565.0,0.07406055]
[1764075785189,0.0544845,87566.0,87565.0,0.04329]
[1764075785998,0.01361,87570.0,87555.0,0.04100895]
[1764075785999,0.0114258,87556.0,87555.0,0.04100895]
[1764075786203,0.0544861,87554.0,87552.0,0.04100895]
[1764075786497,0.0544861,87554.0,87553.0,0.02214]
[1764075787003,0.0544861,87554.0,87553.0,0.04329]
[1764075787902,0.0544861,87554.0,87553.0,0.02214]
[1764075788094,0.5554861,87554.0,87553.0,0.09642]
[1764075788701,0.5554861,87554.0,87553.0,0.11757]
[1764075790398,0.5544861,87554.0,87553.0,0.11757]
[1764075790798,0.5544861,87554.0,87553.0,0.07428]
[1764075790999,0.0544865,87551.0,87550.0,0.04118025]
[1764075791200,0.0544865,87551.0,87550.0,0.22130025]
[1764075791407,0.0544865,87551.0,87550.0,0.1802913]
[1764075792110,0.0544865,87551.0,87550.0,0.0001713]
[1764075792612,0.5544865,87551.0,87550.0,0.0001713]
[1764075793604,0.5544865,87551.0,87550.0,0.0215913]
[1764075793907,0.54306,87551.0,87550.0,0.0443713]
[1764075794302,0.501,87551.0,87550.0,0.0443713]
[1764075794910,0.0569453,87561.0,87560.0,0.0442]
[1764075795108,0.04552,87561.0,87560.0,0.0442]
[1764075798313,0.04552,87561.0,87560.0,0.10561871]
[1764075798715,0.05913,87570.0,87569.0,0.0442]
[1764075799414,0.55913,87570.0,87569.0,0.0442]
[1764075799815,0.56013,87570.0,87569.0,0.0442]
[1764075800113,0.56113,87570.0,87569.0,0.0442]
[1764075800508,0.54752,87570.0,87569.0,0.0442]
[1764075801606,0.54752,87570.0,87569.0,0.10561871]
[1764075801607,0.502,87570.0,87569.0,0.10561871]
[1764075801808,0.002,87570.0,87569.0,0.0442]
[1764075802211,0.0001713,87574.0,87573.0,0.0556236]
[1764075802406,1.3e-06,87574.0,87573.0,0.0556236]
[1764075803710,1.3e-06,87574.0,87573.0,0.0566236]
[1764075805113,1.3e-06,87574.0,87573.0,0.0576236]
[1764075806609,1.3e-06,87574.0,87573.0,0.0566236]
[1764075806804,1.3e-06,87574.0,87573.0,0.0576236]
[1764075808615,1.3e-06,87574.0,87573.0,0.0462]
[1764075808816,1.3e-06,87574.0,87573.0,0.1280675]
[1764075809216,1.3e-06,87574.0,87573.0,0.0452]
[1764075809411,1.3e-06,87574.0,87573.0,0.0462]
[1764075809813,1.3e-06,87574.0,87573.0,0.1280675]
[1764075810522,1.3e-06,87574.0,87573.0,0.0462]
[1764075814220,1.3e-06,87574.0,87573.0,0.4452]
[1764075814525,1.3e-06,87574.0,87573.0,0.4462]
[1764075814717,1.3e-06,87574.0,87573.0,0.4452]
[1764075814918,1.3e-06,87574.0,87573.0,0.4462]
[1764075817223,1.3e-06,87574.0,87573.0,0.54834357]
[1764075817424,1.3e-06,87574.0,87573.0,0.4462]
[1764075817619,0.01348,87618.0,87573.0,0.4462]
[1764075817824,0.059,87624.0,87623.0,0.0442]
[1764075818029,0.059,87624.0,87623.0,0.07348]
[1764075819318,0.559,87624.0,87623.0,0.07348]
[1764075819516,0.959,87624.0,87623.0,0.07348]
[1764075819716,0.959,87624.0,87623.0,0.0949]
[1764075819918,0.959,87624.0,87623.0,0.07348]
[1764075820112,0.559,87624.0,87623.0,0.0949]
[1764075820721,0.559,87624.0,87623.0,0.07348]
[1764075822326,0.05714,87616.0,87615.0,0.00017119]
[1764075822529,0.068558,87616.0,87615.0,0.18021119]
[1764075823124,0.068558,87616.0,87615.0,0.00017119]
[1764075823321,0.068558,87616.0,87615.0,0.06213119]
[1764075823723,0.068558,87616.0,87615.0,0.04867119]
[1764075823724,0.468558,87616.0,87615.0,0.04867119]
[1764075823932,0.0114202,87599.0,87598.0,0.01697]
[1764075824427,0.0114202,87599.0,87598.0,0.07266]
[1764075825030,0.0114202,87599.0,87598.0,0.01697]
[1764075826226,0.5114202,87599.0,87598.0,0.01697]
[1764075826920,0.5124202,87599.0,87598.0,0.01697]
[1764075827319,0.501,87599.0,87598.0,0.0840804]
[1764075827922,0.501,87599.0,87598.0,0.07266]
[1764075828428,0.501,87599.0,87598.0,0.2055]
[1764075828627,0.001,87599.0,87598.0,0.2055]
[1764075829026,0.001,87599.0,87598.0,0.07266]
[1764075829519,0.0114202,87600.0,87598.0,0.07266]
[1764075829720,0.001,87599.0,87598.0,0.07266]
[1764075830231,0.001,87599.0,87598.0,0.01697]
[1764075830525,0.001,87599.0,87591.0,0.01697]
[1764075830526,0.0114211,87592.0,87591.0,0.01697]
[1764075830927,0.0114211,87592.0,87591.0,0.04439]
[1764075831429,0.5114211,87592.0,87591.0,0.01697]
[1764075832531,0.5114211,87592.0,87591.0,0.07266]
[1764075832931,0.5124211,87592.0,87591.0,0.07266]
[1764075833530,0.502,87592.0,87591.0,0.07266]
[1764075834226,0.5,87592.0,87591.0,0.07266]
[1764075834431,0.5,87592.0,87591.0,0.01697]
[1764075834833,0.5,87592.0,87591.0,0.07266]
[1764075836830,0.501,87592.0,87591.0,0.07266]
[1764075837440,0.5,87592.0,87591.0,0.07266]
[1764075839536,0.501,87592.0,87591.0,0.07266]
[1764075840134,0.501,87592.0,87591.0,0.04439]
[1764075840335,0.501,87592.0,87591.0,0.01697]
[1764075840528,0.5,87592.0,87591.0,0.01697]
[1764075840729,0.501,87592.0,87591.0,0.01697]
[1764075841131,0.501,87592.0,87591.0,0.07601]
[1764075841836,0.39759104,87592.0,87591.0,0.07601]
[1764075842439,0.001,87592.0,87591.0,0.07601]
[1764075842633,0.002,87592.0,87591.0,0.07601]
[1764075842833,0.001,87592.0,87591.0,0.07601]
[1764075843232,0.001,87592.0,87591.0,0.23165]
[1764075843434,0.0708096,87604.0,87603.0,0.05904]
[1764075843644,0.05939,87604.0,87603.0,0.05904]
[1764075844245,0.55939,87604.0,87603.0,0.05904]
[1764075844933,0.05939,87599.0,87598.0,0.03032]
[1764075845136,0.05939,87599.0,87598.0,0.1022]
[1764075845137,0.0708102,87599.0,87598.0,0.1022]
[1764075845434,0.0708107,87595.0,87594.0,0.12049109]